bitfinex-derivatives/quotes_ETHF0:USTF0_20241207
["timestamp","ask_amount","ask_price","bid_price","bid_amount"]
[1733573815987,0.17465,4003.4,4003.3,0.17465]
[1733573816486,0.17465,4003.4,4003.3,40.97465]
[1733573817491,4.18674,4003.5,4003.4,0.17465]
[1733573817791,4.18674,4003.5,4003.4,0.54995]
[1733573818399,4.87511591,4004.0,4003.5,0.17464]
[1733573818400,0.17464,4003.6,4003.5,0.17464]
[1733573818691,0.98823,4003.9,4003.8,0.17463]
[1733573819091,0.8136,4003.9,4003.8,0.17463]
[1733573820493,0.4024,4003.9,4003.8,0.17463]
[1733573820895,0.17462,4004.1,4003.5,0.3887]
[1733573821204,0.17462,4004.0,4003.9,0.17462]
[1733573821899,0.7757,4004.3,4003.5,0.3887]
[1733573822098,0.17463,4003.8,4003.6,0.17463]
[1733573822295,0.17463,4003.7,4003.6,0.17463]
[1733573822503,4.14297791,4004.3,4003.6,0.17463]
[1733573822801,4.14297791,4004.3,4003.7,0.17463]
[1733573822997,0.17463,4003.9,4003.8,0.17463]
[1733573823400,0.17462,4004.0,4003.9,0.17462]
[1733573823904,0.7757,4004.3,4003.5,4.29377797]
[1733573824102,0.17462,4003.9,4003.7,0.17463]
[1733573824602,0.17463,4003.8,4003.5,4.29377797]
[1733573824804,0.7757,4004.3,4003.7,0.17463]
[1733573824999,0.17463,4003.9,4003.5,4.29377797]
[1733573825203,0.17463,4003.9,4003.8,0.17463]
[1733573825400,0.17463,4003.9,4003.7,0.17463]
[1733573825702,0.17463,4003.9,4003.5,4.29377797]
[1733573825901,0.17463,4003.9,4003.8,0.17463]
[1733573826599,0.17462,4004.0,4003.9,0.17462]
[1733573826907,0.17462,4004.1,4003.5,3.5965]
[1733573827200,3.2078,4004.4,4003.8,3.90507797]
[1733573827405,3.2078,4004.4,4004.3,0.17461]
[1733573828695,0.17459,4004.6,4003.8,3.90507797]
[1733573829004,0.17459,4004.6,4004.5,0.1746]
[1733573829301,0.3843,4004.9,4004.0,3.2078]
[1733573829501,0.3843,4004.9,4004.1,0.3902]
[1733573829697,0.3843,4004.9,4004.6,0.17459]
[1733573829898,0.17459,4004.7,4004.6,0.17459]
[1733573830200,0.3843,4004.9,4004.2,0.3913]
[1733573830395,0.17461,4004.2,4004.1,0.3902]
[1733573830596,0.17461,4004.3,4004.2,0.17461]
[1733573830797,0.17461,4004.3,4004.0,3.2078]
[1733573830798,1.944358,4004.4,4004.0,3.2078]
[1733573831096,0.17464,4003.6,4003.5,3.38244]
[1733573831897,0.17464,4003.6,4003.5,3.2078]
[1733573832299,0.17464,4003.6,4003.5,3.38244]
[1733573832805,0.17464,4003.6,4003.5,0.17464]
[1733573833108,3.64434,4004.1,4003.2,3.6153]
[1733573833396,0.17464,4003.6,4003.5,0.17464]
[1733573833604,3.2078,4004.1,4003.2,7.52037797]
[1733573833800,0.17462,4004.0,4003.9,0.17462]
[1733573834001,0.17462,4004.0,4003.3,0.43663]
[1733573834002,3.2078,4004.1,4004.0,0.17462]
[1733573834907,3.2078,4004.1,4004.0,40.97462]
[1733573835301,3.6129,4004.6,4004.0,40.8]
[1733573835803,0.1746,4004.5,4004.4,0.1746]
[1733573835995,0.1746,4004.5,4003.8,4.45479797]
[1733573835996,0.6111,4004.5,4003.8,4.45479797]
[1733573836200,0.1746,4004.5,4003.8,0.3751]
[1733573836404,0.17462,4003.9,4003.8,41.1751]
[1733573836705,0.17462,4004.1,4003.9,0.17462]
[1733573836908,0.17462,4004.0,4003.9,0.17462]
[1733573837102,3.6129,4004.6,4003.8,41.1751]
[1733573837303,1.944358,4004.4,4003.8,40.8]
[1733573837507,0.43657,4003.9,4003.2,3.2078]
[1733573837806,0.17465,4003.3,4003.2,3.2078]
[1733573837996,0.17465,4003.3,4003.2,44.0078]
[1733573838201,0.17465,4003.3,4003.2,40.8]
[1733573841008,3.32495791,4003.5,4002.7,3.2078]
[1733573841009,0.17467,4002.8,4002.7,3.2078]
[1733573841411,0.17467,4002.8,4002.7,44.0078]
[1733573841612,0.17467,4002.8,4002.7,44.18248]
[1733573842114,0.17467,4002.9,4002.8,0.17467]
[1733573843507,0.3816,4003.2,4002.7,44.18247]
[1733573843508,0.17467,4002.8,4002.7,44.18247]
[1733573843712,0.17467,4002.8,4002.7,44.0078]
[1733573844902,0.17467,4002.8,4002.7,40.8]
[1733573846409,0.1747,4002.2,4002.1,3.2078]
[1733573846717,0.1747,4002.2,4002.1,44.0078]
[1733573850115,0.1747,4002.2,4002.1,40.8]
[1733573859915,0.1747,4002.1,4002.0,0.3995]
[1733573860118,0.5666,4002.1,4002.0,0.3995]
[1733573860418,0.5666,4002.1,4002.0,41.1995]
[1733573860813,0.3919,4002.1,4001.1,3.90507797]
[1733573861015,0.17472,4001.6,4001.5,3.5945]
[1733573861224,0.17472,4001.6,4001.5,44.3945]
[1733573861721,0.17472,4001.6,4001.5,41.1867]
[1733573863116,0.17472,4001.6,4001.5,40.8]
[1733573863416,0.4368,4001.8,4000.9,0.7687]
[1733573863612,0.17475,4001.2,4001.1,0.17474]
[1733573863808,0.17475,4001.2,4001.1,40.97474]
[1733573864916,0.17475,4001.2,4001.1,40.8]
[1733573865117,0.17475,4001.2,4001.1,40.97475]
[1733573866311,3.2078,4002.0,4001.1,44.0078]
[1733573866511,0.17471,4001.9,4001.8,0.17471]
[1733573866713,3.38251,4002.0,4001.9,0.17471]
[1733573867219,3.38251,4002.0,4001.9,40.97471]
[1733573867619,3.2078,4002.0,4001.9,40.97471]
[1733573867817,0.389,4002.4,4001.9,40.8]
[1733573868017,3.38248,4002.5,4002.4,0.17469]
[1733573868220,3.2078,4002.5,4002.4,0.17469]
[1733573868415,0.55477,4002.9,4002.7,0.17467]
[1733573868614,0.3801,4002.9,4002.8,0.17467]
[1733573868818,0.3791,4003.1,4002.4,3.2078]
[1733573869024,0.3791,4003.1,4003.0,0.17466]
[1733573869416,0.3791,4003.1,4002.4,3.2078]
[1733573869915,0.17465,4003.3,4003.1,0.17466]
[1733573870114,0.17465,4003.2,4003.1,0.17466]
[1733573870515,0.3886,4003.5,4002.5,1.944358]
[1733573870719,0.17465,4003.4,4003.2,0.17465]
[1733573870917,0.3886,4003.5,4003.0,3.2078]
[1733573871120,0.56324,4003.5,4003.3,0.17465]
[1733573871422,0.3886,4003.5,4003.1,0.3803]
[1733573871623,0.17465,4003.4,4003.2,0.17465]
[1733573871821,0.17465,4003.4,4003.3,0.17465]
[1733573872121,0.3886,4003.5,4003.3,0.17465]
[1733573872419,0.56324,4003.5,4003.3,0.17465]
[1733573872922,0.56324,4003.5,4003.4,0.17465]
[1733573873422,0.3888,4003.8,4003.4,0.17464]
[1733573873925,0.17464,4003.6,4003.4,0.17464]
[1733573874125,0.17464,4003.5,4003.4,0.17464]
[1733573874623,0.17464,4003.5,4003.3,0.17465]
[1733573874822,2.333158,4003.8,4003.1,0.3803]
[1733573875014,0.17466,4003.2,4003.0,3.38246]
[1733573875322,0.17466,4003.1,4003.0,3.2078]
[1733573875623,0.17465,4003.2,4003.1,0.17466]
[1733573876324,0.17465,4003.3,4003.1,0.17466]
[1733573876626,2.93075791,4003.7,4003.0,3.2078]
[1733573877022,0.17466,4003.1,4003.0,3.2078]
[1733573878928,0.4366,4003.6,4003.3,0.17465]
[1733573878929,0.17465,4003.4,4003.3,0.17465]
[1733573879133,0.17464,4003.5,4003.3,0.17465]
[1733573879424,0.17465,4003.4,4003.3,0.17465]
[1733573879822,3.58775791,4003.7,4003.0,3.2078]
[1733573880022,0.3888,4003.8,4003.5,0.17464]
[1733573880023,0.17464,4003.6,4003.5,0.17464]
[1733573880623,0.17464,4003.6,4003.0,3.2078]
[1733573880826,0.17464,4003.5,4003.0,3.2078]
[1733573881030,3.31955791,4003.8,4003.0,3.2078]
[1733573881233,0.17464,4003.6,4003.4,0.17464]
[1733573881525,3.31955791,4003.8,4003.4,0.17464]
[1733573881725,0.17464,4003.6,4003.5,0.17464]
[1733573882227,0.17466,4003.1,4003.0,3.38246]
[1733573884935,0.17466,4003.1,4003.0,3.2078]
[1733573886231,0.17466,4003.1,4002.6,0.55508]
[1733573886232,3.2078,4003.4,4002.6,0.3804]
[1733573886423,0.93926,4003.0,4002.9,0.17467]
[1733573886745,0.17466,4003.2,4002.6,0.3804]
[1733573887028,0.17466,4003.2,4003.1,0.17466]
[1733573887433,0.17466,4003.1,4003.0,0.17466]
[1733573887634,0.17467,4003.0,4002.9,0.17466]
[1733573890029,0.657,4003.3,4002.7,0.3801]
[1733573890233,0.17466,4003.2,4003.1,0.17465]
[1733573891941,2.93075791,4003.3,4002.7,0.3801]
[1733573892135,2.93075791,4003.3,4003.2,0.17465]
[1733573892136,0.17465,4003.3,4003.2,0.17465]
[1733573893238,0.17466,4003.2,4003.1,0.17466]
[1733573894041,6.13855791,4003.4,4002.7,0.3801]
[1733573894242,0.17466,4003.3,4003.2,0.17465]
[1733573894938,0.17466,4003.2,4003.1,0.17466]
[1733573896835,0.17466,4003.2,4002.7,0.3801]
[1733573896836,0.17465,4003.3,4003.2,0.17465]
[1733573897141,3.38243,4003.8,4003.7,0.17463]
[1733573897340,3.2078,4003.8,4003.7,0.17463]
[1733573897540,3.2078,4003.8,4003.7,40.97463]
[1733573897739,2.93075791,4004.0,4003.7,40.8]
[1733573897934,0.794,4004.2,4004.1,0.17461]
[1733573898539,3.8628,4004.7,4004.3,0.1746]
[1733573898840,0.3884,4004.6,4004.5,0.1746]
[1733573899532,0.56299,4004.6,4004.5,0.1746]
[1733573899732,0.1746,4004.5,4004.4,0.1746]
[1733573899945,0.3884,4004.6,4003.9,0.3921]
[1733573900137,0.3884,4004.6,4004.5,0.1746]
[1733573900834,0.17461,4004.3,4004.2,3.2078]
[1733573901343,0.17461,4004.3,4004.2,3.38241]
[1733573901945,0.1746,4004.5,4004.3,0.1746]
[1733573902245,0.3884,4004.6,4004.2,3.2078]
[1733573902543,0.17461,4004.3,4004.2,3.38241]
[1733573903842,0.3884,4004.6,4004.2,3.2078]
[1733573904042,0.3884,4004.6,4004.3,0.1746]
[1733573904043,0.1746,4004.4,4004.3,0.1746]
[1733573904846,0.1746,4004.5,4004.4,0.1746]
[1733573905643,0.3884,4004.6,4004.5,0.1746]
[1733573906045,0.56299,4004.6,4004.5,0.1746]
[1733573906245,0.3884,4004.6,4004.2,3.2078]
[1733573906546,0.17461,4004.3,4004.2,3.38241]
[1733573906747,0.1746,4004.4,4004.3,0.1746]
[1733573907741,0.1746,4004.4,4003.7,45.952158]
[1733573907742,0.17463,4003.8,4003.7,3.2078]
[1733573908046,0.655,4004.0,4003.2,0.17465]
[1733573908349,0.17465,4003.4,4003.3,0.17465]
[1733573908648,0.17464,4003.6,4003.5,0.17464]
[1733573908943,0.7988,4003.7,4003.1,0.7653]
[1733573909147,0.7988,4003.7,4003.5,0.17464]
[1733573909637,3.58053411,4004.0,4003.1,0.7653]
[1733573909834,0.17462,4003.9,4003.8,0.17463]
[1733573910239,0.655,4004.0,4003.2,3.64444]
[1733573910440,2.92553411,4004.0,4003.7,0.17463]
[1733573910641,0.17463,4003.8,4003.7,0.17463]
[1733573911040,2.92553411,4004.0,4003.2,3.2078]
[1733573911242,2.92553411,4003.9,4003.5,0.17464]
[1733573911448,0.17464,4003.5,4003.4,0.17464]
[1733573911638,0.17464,4003.6,4003.3,0.17465]
[1733573912038,0.3925,4003.7,4003.2,3.2078]
[1733573912248,0.17465,4003.3,4003.2,3.2078]
[1733573912442,0.17467,4002.8,4002.7,44.99217]
[1733573912644,0.17467,4002.8,4002.7,44.0078]
[1733573913653,0.17467,4002.8,4002.7,3.2078]
[1733573914937,0.17468,4002.6,4002.5,40.8]
[1733573915847,0.17469,4002.4,4002.3,3.90507797]
[1733573916239,0.17469,4002.4,4002.3,44.70507797]
[1733573917945,0.17469,4002.4,4002.3,40.8]
[1733573919249,0.4088,4002.5,4002.3,40.8]
[1733573919645,0.3911,4002.9,4002.8,0.17467]
[1733573919851,3.38247,4003.0,4002.9,0.17467]
[1733573920250,3.38246,4003.0,4002.9,0.17467]
[1733573920454,3.2078,4003.0,4002.9,40.97467]
[1733573921551,3.38246,4003.0,4002.9,40.97467]
[1733573922845,3.38246,4003.0,4002.9,0.17467]
[1733573923454,3.2078,4003.0,4002.4,40.8]
[1733573923654,0.17467,4002.9,4002.8,0.17467]
[1733573924854,0.17467,4002.8,4002.7,0.17467]
[1733573925055,0.17467,4002.9,4002.8,0.17467]
[1733573926351,0.17467,4003.0,4002.9,0.17466]
[1733573927961,0.17466,4003.1,4003.0,0.17466]
[1733573931663,0.17467,4002.9,4002.8,0.17467]
[1733573932259,0.17466,4003.1,4003.0,0.17466]
[1733573932559,0.17466,4003.1,4002.6,4.0005]
[1733573932560,0.17465,4003.3,4003.2,0.17465]
[1733573932760,0.17466,4003.2,4003.1,0.17466]
[1733573933064,0.17466,4003.1,4003.0,0.17466]
[1733573934866,0.17466,4003.2,4003.1,0.17465]
[1733573935067,0.3911,4003.4,4002.6,4.0005]
[1733573935263,0.17466,4003.2,4003.1,0.17465]
[1733573936271,0.3911,4003.4,4002.6,4.0005]
[1733573936472,0.17466,4003.3,4003.2,0.17465]
[1733573936866,0.17466,4003.2,4003.1,0.17465]
[1733573938469,0.17465,4003.3,4003.2,0.17465]
[1733573939471,0.3911,4003.4,4002.6,7.91704199]
[1733573939669,0.17466,4003.1,4003.0,0.17466]
[1733573941270,0.17466,4003.2,4003.1,0.17465]
[1733573943668,0.17467,4003.0,4002.9,0.17466]
[1733573944379,0.17467,4003.0,4002.6,0.7927]
[1733573944380,0.17468,4002.8,4002.7,0.17467]
[1733573944875,0.17468,4002.6,4002.5,0.17468]
[1733573945767,0.7831,4002.7,4002.4,40.8]
[1733573945967,0.17468,4002.5,4002.4,40.97469]
[1733573946376,0.7831,4002.7,4002.4,40.8]
[1733573946574,0.7831,4002.7,4002.6,0.17468]
[1733573946778,0.95778,4002.7,4002.6,0.17468]
[1733573947073,0.408,4002.7,4002.6,0.17468]
[1733573947275,0.58268,4002.7,4002.6,0.17468]
[1733573947482,0.58268,4002.7,4002.3,41.2049]
[1733573947483,0.17466,4003.0,4002.9,0.17467]
[1733573950976,3.2078,4003.1,4002.5,3.91654199]
[1733573951179,0.17468,4002.7,4002.6,0.17468]
[1733573952772,3.2078,4003.1,4002.8,0.17467]
[1733573952773,0.17467,4002.9,4002.8,0.17467]
[1733573954377,3.38246,4003.1,4003.0,0.17466]
[1733573955684,3.38246,4003.1,4003.0,4.49454206]
[1733573955879,3.38246,4003.1,4003.0,0.3948]
[1733573956479,3.38246,4003.1,4003.0,0.56946]
[1733573957186,3.2078,4003.1,4003.0,4.49454206]
[1733573957378,3.38246,4003.1,4003.0,4.49782412]
[1733573957684,3.38246,4003.1,4003.0,5.11445107]
[1733573957981,3.2078,4003.1,4003.0,5.11445107]
[1733573958180,3.2078,4003.1,4003.0,10.98926405]
[1733573958391,3.31143607,4003.4,4003.0,4.93979107]
[1733573958575,0.382,4003.4,4003.3,6.0666479]
[1733573958882,4.28791476,4003.4,4003.3,0.17465]
[1733573959181,3.91643947,4003.4,4003.0,4.32266445]
[1733573959386,4.09108947,4003.4,4003.3,0.17465]
[1733573959575,0.17465,4003.4,4003.3,0.17465]
[1733573959774,0.54964,4003.5,4003.4,0.17465]
[1733573960287,0.17465,4003.3,4003.2,0.17465]
[1733573960481,3.91586798,4003.4,4003.0,0.3948]
[1733573960682,2.93696589,4003.2,4003.0,4.32266445]
[1733573960879,2.93696589,4003.2,4003.1,0.17466]
[1733573961780,2.93696589,4003.3,4003.2,0.17465]
[1733573961976,3.91586798,4003.4,4003.0,0.3948]
[1733573962281,2.9366303,4003.2,4003.0,0.3948]
[1733573962485,2.9366303,4003.2,4003.1,0.17466]
[1733573963487,2.9366303,4003.2,4002.9,3.92786445]
[1733573963684,2.9366303,4003.2,4002.6,4.32626445]
[1733573963685,3.91586798,4003.2,4002.6,4.32626445]
[1733573963877,0.17468,4002.8,4002.7,0.17467]
[1733573964082,3.91586798,4002.9,4002.8,0.17467]
[1733573964289,3.91586798,4003.0,4002.6,0.3984]
[1733573964482,3.91586798,4003.0,4002.9,0.17467]
[1733573965883,0.3997,4003.1,4003.0,0.17466]
[1733573967097,0.3997,4003.1,4003.0,4.10252445]
[1733573967293,2.93699409,4003.3,4003.0,3.92786445]
[1733573967599,3.31379409,4003.5,4003.2,3.92786445]
[1733573967797,3.2078,4003.6,4003.5,0.17464]
[1733573967982,3.2078,4003.6,4003.5,4.7174306]
[1733573968188,3.31379409,4004.0,4003.5,10.87119728]
[1733573968390,0.3768,4004.0,4003.9,4.09995552]
[1733573968587,0.3768,4004.0,4003.9,0.17462]
[1733573968796,0.3768,4004.0,4003.9,4.09965158]
[1733573969194,0.3768,4004.0,4003.9,4.09962864]
[1733573970501,0.3768,4004.0,4003.9,0.17462]
[1733573974101,0.55142,4004.0,4003.9,0.17462]
[1733573974296,0.17463,4003.9,4003.8,0.17462]
[1733573974495,0.17463,4003.9,4003.5,3.2078]
[1733573974496,0.89798775,4003.9,4003.5,3.2078]
[1733573974896,0.17464,4003.6,4003.5,3.38244]
[1733573975297,1.07262775,4003.6,4003.5,3.2078]
[1733573975502,1.07262775,4003.6,4003.5,3.38244]
[1733573976101,1.07262775,4003.6,4003.5,0.17464]
[1733573977005,0.89798775,4003.6,4002.9,4.30080864]
[1733573977198,0.17465,4003.4,4003.3,0.17465]
[1733573978906,4.10578775,4003.6,4002.9,0.3894]
[1733573979208,1.07264775,4003.0,4002.9,0.17466]
[1733573981407,1.07264775,4003.0,4002.8,3.2078]
[1733573981408,2.93699409,4003.1,4003.0,0.17466]
[1733573981604,3.11165409,4003.1,4003.0,0.17466]
[1733573982205,0.17466,4003.1,4003.0,0.17466]
[1733573982412,3.11165409,4003.1,4003.0,0.17466]
[1733573982815,0.17466,4003.1,4003.0,0.17466]
[1733573983012,3.33999409,4003.2,4003.1,0.17466]
[1733573983013,3.51465409,4003.2,4003.1,0.17466]
[1733573983206,3.50895211,4003.2,4003.1,0.17466]
[1733573983917,0.17466,4003.1,4003.0,0.17466]
[1733573984119,3.10595211,4003.1,4003.0,0.17466]
[1733573984517,0.17468,4002.8,4002.7,0.17467]
[1733573986921,3.10592743,4002.9,4002.8,0.17467]
[1733573988420,2.93125743,4002.9,4002.8,0.17467]
[1733573988618,2.93125743,4003.0,4002.9,0.17467]
[1733573988822,6.31371743,4003.1,4003.0,0.17466]
[1733573989015,3.2078,4003.1,4003.0,0.17466]
[1733573989622,3.38246,4003.1,4003.0,0.17466]
[1733573990025,3.2078,4003.1,4003.0,0.17466]
[1733573990522,0.408,4003.4,4002.9,0.89798775]
[1733573990714,0.408,4003.4,4003.3,0.17465]
[1733573993118,0.58265,4003.4,4003.3,0.17465]
[1733573993322,0.58265,4003.4,4003.1,3.92500864]
[1733573993323,0.17465,4003.2,4003.1,4.09965864]
[1733573993625,0.17465,4003.2,4003.0,6.67379668]
[1733573993626,0.17465,4003.3,4003.2,0.17465]
[1733573995120,1.30598775,4003.4,4003.0,4.70700864]
[1733573995121,0.17466,4003.2,4003.0,3.92500864]
[1733573995324,0.17466,4003.2,4003.1,0.17466]
[1733573995825,0.17467,4003.0,4002.9,0.17466]
[1733573996021,3.10592743,4003.0,4002.9,0.17466]
[1733573996522,3.10644887,4003.0,4002.9,0.17466]
[1733573997232,7.12366798,4003.2,4002.8,0.17467]
[1733573997233,0.17467,4002.9,4002.8,0.17467]
[1733573997420,3.51681787,4002.9,4002.8,0.17467]
[1733573997723,0.58497,4002.9,4002.8,0.17467]
[1733573998125,3.51690379,4002.9,4002.8,0.17467]
[1733573999828,0.58497,4002.9,4002.8,0.17467]
[1733574000226,0.4103,4002.9,4002.8,0.17467]
[1733574000422,0.58497,4002.9,4002.8,0.17467]
[1733574000624,0.4103,4002.9,4002.8,0.17467]
[1733574001626,0.58497,4002.9,4002.8,0.17467]
[1733574001831,0.4103,4002.9,4002.8,0.17467]
[1733574002529,2.93276482,4003.0,4002.9,0.17467]
[1733574002835,3.10742482,4003.0,4002.9,0.17467]
[1733574003225,0.17467,4002.8,4002.7,0.58087]
[1733574003427,0.17467,4002.8,4002.7,0.17468]
[1733574003624,3.10799871,4002.8,4002.7,0.17468]
[1733574003825,3.50729871,4002.8,4002.7,0.17468]
[1733574004026,0.57397,4002.8,4002.7,0.17468]
[1733574004334,0.57397,4002.8,4002.7,4.09968864]
[1733574004528,0.57397,4002.8,4002.7,0.17468]
[1733574008030,0.3993,4002.8,4002.7,0.17468]
[1733574008241,0.3993,4002.8,4002.7,4.09968864]
[1733574008528,0.3998,4002.9,4002.7,3.92500864]
[1733574008723,0.57447,4002.9,4002.8,0.17467]
[1733574009331,0.4016,4003.1,4002.8,3.92500864]
[1733574009635,0.57626,4003.1,4003.0,0.17466]
[1733574010534,0.17466,4003.0,4002.9,0.3923]
[1733574010736,0.17466,4003.0,4002.9,0.17467]
[1733574011529,3.2078,4003.2,4003.1,0.17466]
[1733574011728,0.17465,4003.5,4003.4,0.17464]
[1733574012433,0.17465,4003.5,4003.4,0.98724]
[1733574012733,0.58484,4003.6,4003.5,0.17464]
[1733574013833,0.4102,4003.6,4003.4,0.8126]
[1733574014034,0.17464,4003.5,4003.4,0.98724]
[1733574014335,0.17464,4003.5,4003.4,4.90883141]
[1733574014638,0.17464,4003.5,4003.4,0.98724]
[1733574015338,0.17464,4003.5,4003.4,4.90883141]
[1733574017038,0.17464,4003.5,4003.4,0.98724]
[1733574017243,0.17464,4003.5,4003.4,4.90883141]
[1733574018134,0.17464,4003.5,4003.4,4.73419141]
[1733574018531,0.17464,4003.5,4003.4,4.90884141]
[1733574019136,0.17464,4003.5,4003.4,0.98725]
[1733574019640,0.17464,4003.5,4003.4,0.8126]
[1733574020237,3.91586798,4003.5,4002.9,3.92159141]
[1733574020439,0.17467,4002.9,4002.8,3.38247]
[1733574020745,0.58827,4002.9,4002.8,3.2078]
[1733574020930,1.00177,4002.9,4002.8,3.2078]
[1733574021337,1.00177,4002.9,4002.3,3.92159141]
[1733574021338,4.74296798,4002.9,4002.3,3.92159141]
[1733574021540,3.11149002,4002.5,4002.4,0.17468]
[1733574021739,0.17469,4002.4,4002.3,0.57279]
[1733574021939,3.11142501,4002.4,4002.3,0.57279]
[1733574022941,3.11142501,4002.4,4002.3,0.3981]
[1733574023635,2.93673501,4002.4,4002.2,3.2078]
[1733574023852,0.55489,4002.3,4002.2,3.2078]
[1733574024138,4.38961276,4002.3,4002.2,3.2078]
[1733574024348,1.45287775,4002.3,4002.2,3.2078]
[1733574026148,1.45287775,4002.3,4002.2,7.12939141]
[1733574027747,1.45287775,4002.3,4002.2,3.2078]
[1733574027943,1.45287775,4002.3,4002.2,3.3825]
[1733574028143,0.55489,4002.3,4002.2,7.30409141]
[1733574028343,0.55489,4002.3,4002.2,3.3825]
[1733574028649,0.652,4002.8,4002.2,7.12939141]
[1733574028846,0.17469,4002.5,4002.4,0.17468]
[1733574029747,0.17468,4002.6,4002.5,0.17468]
[1733574030545,6.14484314,4003.1,4002.4,3.92159141]
[1733574030843,0.17467,4002.9,4002.8,0.17467]
[1733574034650,2.93704314,4002.9,4002.7,0.7891]
[1733574034847,0.17467,4002.8,4002.7,0.96377]
[1733574035245,2.93704314,4002.9,4002.8,0.17467]
[1733574035246,3.11171314,4002.9,4002.8,0.17467]
[1733574035550,2.93704314,4002.9,4002.7,0.7891]
[1733574035747,2.93704314,4003.0,4002.7,0.7891]
[1733574035953,3.11170314,4003.0,4002.9,0.17467]
[1733574036144,6.14484314,4003.1,4002.7,0.7891]
[1733574036343,6.31950314,4003.1,4003.0,0.17466]
[1733574036950,6.14484314,4003.1,4003.0,0.17466]
[1733574037149,2.93704314,4003.2,4003.1,0.17466]
[1733574037655,2.93704314,4003.4,4003.3,0.17465]
[1733574037854,3.11169314,4003.4,4003.3,0.17465]
[1733574038355,0.17466,4003.2,4003.1,0.17465]
[1733574039652,3.11268852,4003.2,4003.1,0.17465]
[1733574040055,0.17466,4003.2,4003.1,0.17465]
[1733574041056,0.17466,4003.2,4003.1,4.09624141]
[1733574042457,0.17466,4003.2,4003.1,0.17465]
[1733574043153,0.17466,4003.2,4003.1,0.17466]
[1733574044361,0.3848,4003.3,4002.9,3.92159141]
[1733574044660,0.17467,4002.9,4002.8,7.30406141]
[1733574044852,0.17467,4002.9,4002.8,7.12939141]
[1733574045350,0.17467,4002.9,4002.8,7.30406141]
[1733574045750,0.58866,4003.0,4002.9,0.17467]
[1733574045950,0.17465,4003.2,4002.9,3.92159141]
[1733574046154,0.55945,4003.3,4003.2,0.17465]
[1733574046549,0.3848,4003.3,4003.2,40.97465]
[1733574046856,0.55945,4003.3,4003.2,40.97465]
[1733574047255,3.2078,4003.7,4003.2,45.61957916]
[1733574047558,3.2078,4003.7,4003.6,0.17464]
[1733574048059,3.2078,4003.7,4003.6,0.94584]
[1733574049259,6.14596343,4003.7,4003.6,0.94584]
[1733574050359,2.93816343,4003.7,4003.6,0.94584]
[1733574051560,3.83615118,4003.8,4003.6,0.7712]
[1733574051762,2.93816343,4003.8,4003.7,0.17463]
[1733574053059,0.4083,4003.9,4003.8,0.17463]
[1733574053060,3.52109343,4003.9,4003.8,0.17463]
[1733574053257,3.52109343,4003.9,4003.6,0.7712]
[1733574053258,0.17463,4003.8,4003.7,0.17463]
[1733574053458,3.52109343,4003.9,4003.8,0.17463]
[1733574053872,3.52108343,4003.9,4003.8,0.17463]
[1733574054066,3.34646343,4003.9,4003.8,0.17463]
[1733574054263,0.4083,4003.9,4003.8,0.17463]
[1733574054567,0.58292,4003.9,4003.8,0.17463]
[1733574054765,3.34646343,4003.9,4003.6,0.7712]
[1733574054962,0.17463,4003.8,4003.7,0.17463]
[1733574055165,3.34646343,4003.9,4003.8,0.17463]
[1733574055166,3.52109343,4003.9,4003.8,0.17463]
[1733574055366,0.58293,4003.9,4003.8,0.17463]
[1733574055568,3.31266343,4004.1,4004.0,0.17462]
[1733574055864,6.32057343,4004.3,4004.2,0.17461]
[1733574056258,3.38241,4004.3,4004.2,0.17461]
[1733574057367,0.5872,4004.4,4004.3,0.17461]
[1733574058460,0.4126,4004.4,4004.3,0.17461]
[1733574058663,0.5872,4004.4,4004.3,0.17461]
[1733574059364,0.4126,4004.4,4004.3,0.17461]
[1733574060969,0.5872,4004.4,4004.3,0.17461]
[1733574062769,0.17461,4004.3,4004.2,0.17461]
[1733574070470,0.17462,4004.2,4004.1,0.17461]
[1733574070773,0.17462,4003.9,4003.8,3.38242]
[1733574072868,0.17462,4003.9,4003.8,0.17462]
[1733574073770,0.17462,4003.9,4003.8,1.07260775]
[1733574075772,2.93816343,4004.2,4003.6,3.2078]
[1733574075973,0.17463,4003.7,4003.6,3.2078]
[1733574076172,0.58863,4003.7,4003.6,3.2078]
[1733574076382,3.52679343,4003.7,4003.6,3.2078]
[1733574077572,4.25015118,4003.7,4003.2,40.8]
[1733574077774,0.17465,4003.3,4003.2,40.8]
[1733574078475,0.55795,4003.3,4003.2,40.8]
[1733574078669,0.17466,4003.1,4003.0,0.3801]
[1733574079182,0.17466,4003.1,4003.0,41.1801]
[1733574079675,0.17466,4003.1,4003.0,0.3801]
[1733574079874,0.17466,4003.1,4003.0,0.55476]
[1733574080069,0.17466,4003.1,4003.0,0.3801]
[1733574085275,0.17466,4003.1,4003.0,0.55476]
[1733574086587,0.3833,4003.3,4003.2,0.17465]
[1733574086881,3.11280343,4003.6,4003.5,0.17464]
[1733574087181,2.93816343,4003.7,4003.6,0.17464]
[1733574087376,2.93816343,4003.9,4003.8,0.17463]
[1733574087586,3.11278343,4004.0,4003.9,0.17462]
[1733574087773,0.17462,4004.0,4003.9,0.17462]
[1733574088179,3.11278343,4004.1,4004.0,0.17462]
[1733574088380,0.17462,4003.9,4003.8,1.07260775]
[1733574088880,2.93816343,4004.1,4003.6,0.4053]
[1733574088881,0.17463,4003.7,4003.6,0.4053]
[1733574089083,0.17464,4003.5,4003.4,1.07262775]
[1733574098087,0.17464,4003.7,4003.6,0.17463]
[1733574098490,0.4019,4003.8,4003.4,0.89798775]
[1733574098693,0.17464,4003.6,4003.5,0.17464]